[Event "Late-Titled-Tuesday-Blitz-January-23-2024"]
[Site "Chess.com"]
[Date "2024.01.23"]
[Round "6"]
[White "NitaLucian"]
[Black "shirovin"]
[Result "1-0"]
[WhiteElo "2305"]
[BlackElo "2005"]
[TimeControl "180+1"]
[EndTime "15:04:51 PST"]
[Termination "NitaLucian won on time"]

1. e4 {[%clk 0:02:49]} 1... d6 {[%clk 0:02:58.8]} 2. d3 {[%clk 0:02:49.4]} 2...
Nf6 {[%clk 0:02:58.7]} 3. Nd2 {[%clk 0:02:49.2]} 3... e5 {[%clk 0:02:58.4]} 4.
Ngf3 {[%clk 0:02:50.1]} 4... g6 {[%clk 0:02:58.4]} 5. Be2 {[%clk 0:02:50.5]}
5... Bg7 {[%clk 0:02:58.9]} 6. O-O {[%clk 0:02:51.3]} 6... O-O {[%clk
0:02:58.9]} 7. c3 {[%clk 0:02:52.2]} 7... Nc6 {[%clk 0:02:57.9]} 8. d4 {[%clk
0:02:52.3]} 8... Bd7 {[%clk 0:02:53]} 9. d5 {[%clk 0:02:52.6]} 9... Ne7 {[%clk
0:02:52.6]} 10. c4 {[%clk 0:02:52.8]} 10... Nh5 {[%clk 0:02:51.1]} 11. Ne1
{[%clk 0:02:51.2]} 11... Nf4 {[%clk 0:02:50]} 12. f3 {[%clk 0:02:46]} 12... f5
{[%clk 0:02:49.2]} 13. Nd3 {[%clk 0:02:45.6]} 13... Nxe2+ {[%clk 0:02:36.5]} 14.
Qxe2 {[%clk 0:02:45.4]} 14... f4 {[%clk 0:02:36.9]} 15. c5 {[%clk 0:02:44.5]}
15... g5 {[%clk 0:02:35.9]} 16. cxd6 {[%clk 0:02:42.6]} 16... cxd6 {[%clk
0:02:35.2]} 17. Nc4 {[%clk 0:02:42.8]} 17... b5 {[%clk 0:02:27.3]} 18. Nd2
{[%clk 0:02:27.2]} 18... h5 {[%clk 0:02:24.3]} 19. Nb3 {[%clk 0:02:17.3]} 19...
Ng6 {[%clk 0:02:15.9]} 20. Bd2 {[%clk 0:02:16.6]} 20... Rf7 {[%clk 0:02:14.7]}
21. Ba5 {[%clk 0:02:13.7]} 21... Qe7 {[%clk 0:02:05.6]} 22. Rac1 {[%clk
0:02:12.6]} 22... Bf8 {[%clk 0:02:01.8]} 23. Rc7 {[%clk 0:02:11.4]} 23... Rg7
{[%clk 0:01:50.3]} 24. Nb4 {[%clk 0:02:09.1]} 24... g4 {[%clk 0:01:45.2]} 25.
Nc6 {[%clk 0:02:05.3]} 25... Qh4 {[%clk 0:01:39.5]} 26. Be1 {[%clk 0:01:58.3]}
26... Qg5 {[%clk 0:01:34.9]} 27. Rxd7 {[%clk 0:01:47.2]} 27... Rxd7 {[%clk
0:01:32.2]} 28. Qxb5 {[%clk 0:01:46.5]} 28... gxf3 {[%clk 0:01:23]} 29. Rxf3
{[%clk 0:01:44.2]} 29... Rg7 {[%clk 0:01:14.2]} 30. Qe2 {[%clk 0:01:37.5]} 30...
Nh4 {[%clk 0:01:10.2]} 31. Bxh4 {[%clk 0:01:35.9]} 31... Qxh4 {[%clk 0:01:10.2]}
32. Rh3 {[%clk 0:01:31.9]} 32... Qg5 {[%clk 0:01:08.9]} 33. Rxh5 {[%clk
0:01:28.4]} 33... Qg6 {[%clk 0:00:54.6]} 34. Rf5 {[%clk 0:01:23.5]} 34... a5
{[%clk 0:00:51.8]} 35. Nbxa5 {[%clk 0:01:22.6]} 35... Rh7 {[%clk 0:00:35.4]} 36.
b4 {[%clk 0:01:15.1]} 36... Qh6 {[%clk 0:00:32.8]} 37. Qg4+ {[%clk 0:01:11]}
37... Kh8 {[%clk 0:00:29.8]} 38. h3 {[%clk 0:01:09.3]} 38... Rg7 {[%clk
0:00:23]} 39. Qh5 {[%clk 0:01:04.9]} 39... Qxh5 {[%clk 0:00:20.5]} 40. Rxh5+
{[%clk 0:01:04.6]} 40... Kg8 {[%clk 0:00:20.9]} 41. b5 {[%clk 0:01:02.7]} 41...
f3 {[%clk 0:00:20.5]} 42. g4 {[%clk 0:01:01.4]} 42... Rf7 {[%clk 0:00:19.2]} 43.
Rf5 {[%clk 0:01:01]} 43... Rxf5 {[%clk 0:00:18.5]} 44. gxf5 {[%clk 0:01:00.6]}
44... Bh6 {[%clk 0:00:14.9]} 45. Kf2 {[%clk 0:00:58.8]} 45... Kh7 {[%clk
0:00:12.5]} 46. b6 {[%clk 0:00:56.5]} 46... Rg8 {[%clk 0:00:12.8]} 47. b7 {[%clk
0:00:54.7]} 47... Rg2+ {[%clk 0:00:12.3]} 48. Kxf3 {[%clk 0:00:54.8]} 48... Rb2
{[%clk 0:00:11.3]} 49. b8=Q {[%clk 0:00:54.5]} 1-0

[Event "Late-Titled-Tuesday-Blitz-January-23-2024"]
[Site "Chess.com"]
[Date "2024.01.23"]
[Round "6"]
[White "jinxy2009"]
[Black "NtcPou"]
[Result "1/2-1/2"]
[WhiteElo "2208"]
[BlackElo "2011"]
[TimeControl "180+1"]
[EndTime "15:04:55 PST"]
[Termination "Game drawn by repetition"]

1. e4 {[%clk 0:03:00.9]} 1... c6 {[%clk 0:02:57.8]} 2. d4 {[%clk 0:02:55.1]}
2... d5 {[%clk 0:02:56.3]} 3. e5 {[%clk 0:02:55.4]} 3... Bf5 {[%clk 0:02:52.3]}
4. h4 {[%clk 0:02:46.9]} 4... h5 {[%clk 0:02:50.1]} 5. Bd3 {[%clk 0:02:42.4]}
5... Bxd3 {[%clk 0:02:48.7]} 6. Qxd3 {[%clk 0:02:43.3]} 6... Qa5+ {[%clk
0:02:47.9]} 7. Nd2 {[%clk 0:02:39.9]} 7... e6 {[%clk 0:02:47.5]} 8. Nf3 {[%clk
0:02:35.3]} 8... Qa6 {[%clk 0:02:46.5]} 9. c4 {[%clk 0:02:26.7]} 9... Bb4 {[%clk
0:02:45.5]} 10. O-O {[%clk 0:02:23.5]} 10... Ne7 {[%clk 0:02:04.9]} 11. a3
{[%clk 0:02:08.2]} 11... Bxd2 {[%clk 0:02:01.2]} 12. Nxd2 {[%clk 0:02:09.1]}
12... Nf5 {[%clk 0:01:53.8]} 13. b4 {[%clk 0:02:08.2]} 13... dxc4 {[%clk
0:01:44.1]} 14. Nxc4 {[%clk 0:02:09.1]} 14... O-O {[%clk 0:01:27.4]} 15. Be3
{[%clk 0:01:59.2]} 15... Nd7 {[%clk 0:01:19]} 16. Rac1 {[%clk 0:01:56]} 16...
Nb6 {[%clk 0:01:16.7]} 17. Rfd1 {[%clk 0:01:50]} 17... Nxc4 {[%clk 0:01:15.6]}
18. Qxc4 {[%clk 0:01:48.9]} 18... Qxc4 {[%clk 0:01:14.5]} 19. Rxc4 {[%clk
0:01:49.8]} 19... Nxh4 {[%clk 0:01:13.7]} 20. a4 {[%clk 0:01:45.8]} 20... Nf5
{[%clk 0:01:12.3]} 21. b5 {[%clk 0:01:44.3]} 21... cxb5 {[%clk 0:01:10]} 22.
axb5 {[%clk 0:01:45.2]} 22... Rac8 {[%clk 0:01:09.5]} 23. Rdc1 {[%clk
0:01:43.3]} 23... Rxc4 {[%clk 0:01:05.9]} 24. Rxc4 {[%clk 0:01:44.2]} 24... Rd8
{[%clk 0:01:02.2]} 25. Kf1 {[%clk 0:01:35.8]} 25... Rd7 {[%clk 0:01:00.2]} 26.
Ke2 {[%clk 0:01:35.5]} 26... f6 {[%clk 0:00:49.8]} 27. exf6 {[%clk 0:01:33]}
27... gxf6 {[%clk 0:00:49.3]} 28. Rc8+ {[%clk 0:01:24.1]} 28... Kf7 {[%clk
0:00:48]} 29. Rh8 {[%clk 0:01:21.9]} 29... Kg6 {[%clk 0:00:47.7]} 30. Ra8 {[%clk
0:01:10.2]} 30... b6 {[%clk 0:00:45.2]} 31. Rg8+ {[%clk 0:01:06.4]} 31... Kh7
{[%clk 0:00:43.9]} 32. Re8 {[%clk 0:01:04.8]} 32... Nxd4+ {[%clk 0:00:37.7]} 33.
Bxd4 {[%clk 0:01:04.7]} 33... Rxd4 {[%clk 0:00:37.7]} 34. Re7+ {[%clk
0:01:00.1]} 34... Kg6 {[%clk 0:00:37.3]} 35. Rxa7 {[%clk 0:01:01]} 35... Rb4
{[%clk 0:00:36]} 36. Re7 {[%clk 0:00:54.7]} 36... e5 {[%clk 0:00:34.6]} 37. Re6
{[%clk 0:00:54.1]} 37... Rxb5 {[%clk 0:00:34.1]} 38. Ke3 {[%clk 0:00:53.4]}
38... Kf5 {[%clk 0:00:33.7]} 39. Rc6 {[%clk 0:00:52.8]} 39... Rb3+ {[%clk
0:00:33.6]} 40. Ke2 {[%clk 0:00:52.6]} 40... Rb2+ {[%clk 0:00:33.5]} 41. Kf3
{[%clk 0:00:52.5]} 41... b5 {[%clk 0:00:33.3]} 42. Rb6 {[%clk 0:00:52.1]} 42...
b4 {[%clk 0:00:33]} 43. Ke3 {[%clk 0:00:51.5]} 43... Rb3+ {[%clk 0:00:27.6]} 44.
Ke2 {[%clk 0:00:51.3]} 44... e4 {[%clk 0:00:21.9]} 45. g3 {[%clk 0:00:49.3]}
45... Rb2+ {[%clk 0:00:16.4]} 46. Ke3 {[%clk 0:00:48.8]} 46... Rb3+ {[%clk
0:00:16.5]} 47. Ke2 {[%clk 0:00:48.9]} 47... Rb2+ {[%clk 0:00:10.8]} 48. Ke3
{[%clk 0:00:48.5]} 48... Rb3+ {[%clk 0:00:10.1]} 49. Ke2 {[%clk 0:00:48.3]}
1/2-1/2

[Event "Late-Titled-Tuesday-Blitz-January-23-2024"]
[Site "Chess.com"]
[Date "2024.01.23"]
[Round "6"]
[White "deloewre"]
[Black "Josgar05"]
[Result "0-1"]
[WhiteElo "2008"]
[BlackElo "2315"]
[TimeControl "180+1"]
[EndTime "15:04:56 PST"]
[Termination "Josgar05 won on time"]

1. d4 {[%clk 0:02:51.8]} 1... d5 {[%clk 0:02:59.5]} 2. Bf4 {[%clk 0:02:49.4]}
2... Nf6 {[%clk 0:02:58.7]} 3. e3 {[%clk 0:02:48]} 3... e6 {[%clk 0:02:52.1]} 4.
Nf3 {[%clk 0:02:45.1]} 4... c5 {[%clk 0:02:51.8]} 5. c3 {[%clk 0:02:43.4]} 5...
Nc6 {[%clk 0:02:52.1]} 6. Nbd2 {[%clk 0:02:37]} 6... Bd6 {[%clk 0:02:47.7]} 7.
Bg3 {[%clk 0:02:35.2]} 7... Qc7 {[%clk 0:02:43.9]} 8. Bb5 {[%clk 0:02:30.1]}
8... cxd4 {[%clk 0:02:41.6]} 9. exd4 {[%clk 0:02:27.8]} 9... O-O {[%clk
0:02:41.7]} 10. Bd3 {[%clk 0:02:19.5]} 10... e5 {[%clk 0:02:39.6]} 11. dxe5
{[%clk 0:02:17.3]} 11... Nxe5 {[%clk 0:02:40.5]} 12. Nxe5 {[%clk 0:02:16.3]}
12... Bxe5 {[%clk 0:02:40.7]} 13. O-O {[%clk 0:02:13.1]} 13... Bg4 {[%clk
0:02:37.8]} 14. Qc2 {[%clk 0:02:04.7]} 14... Bxg3 {[%clk 0:02:34.7]} 15. hxg3
{[%clk 0:02:03.1]} 15... Rac8 {[%clk 0:02:35.2]} 16. Bf5 {[%clk 0:01:52.1]}
16... Bxf5 {[%clk 0:02:20.3]} 17. Qxf5 {[%clk 0:01:50.5]} 17... Qb6 {[%clk
0:02:20.9]} 18. Nb3 {[%clk 0:01:45.7]} 18... a5 {[%clk 0:02:17.9]} 19. Rab1
{[%clk 0:01:42.7]} 19... a4 {[%clk 0:02:17.9]} 20. Nd4 {[%clk 0:01:40.7]} 20...
Qd6 {[%clk 0:02:17]} 21. a3 {[%clk 0:01:33.8]} 21... Ne4 {[%clk 0:02:10.9]} 22.
Rfe1 {[%clk 0:01:23.5]} 22... Rce8 {[%clk 0:02:04.1]} 23. Rbd1 {[%clk
0:01:17.6]} 23... Re5 {[%clk 0:02:01.3]} 24. Qf3 {[%clk 0:01:14.4]} 24... Rfe8
{[%clk 0:01:48.7]} 25. Re3 {[%clk 0:01:04.6]} 25... Qh6 {[%clk 0:01:37.7]} 26.
Rde1 {[%clk 0:00:59.5]} 26... Rf8 {[%clk 0:01:05.8]} 27. Qg4 {[%clk 0:00:37.7]}
27... Rg5 {[%clk 0:00:53.9]} 28. Qf4 {[%clk 0:00:35.4]} 28... Qg6 {[%clk
0:00:41.9]} 29. Nf3 {[%clk 0:00:24.4]} 29... Rf5 {[%clk 0:00:41.7]} 30. Qc7
{[%clk 0:00:19.6]} 30... Rf6 {[%clk 0:00:25.9]} 31. R1e2 {[%clk 0:00:14.6]}
31... b6 {[%clk 0:00:23.2]} 32. Qe5 {[%clk 0:00:10.6]} 32... Rf5 {[%clk
0:00:22.5]} 33. Qc7 {[%clk 0:00:08.9]} 33... Qf6 {[%clk 0:00:21.9]} 34. g4
{[%clk 0:00:04.5]} 34... Rf4 {[%clk 0:00:19.7]} 0-1

[Event "Late-Titled-Tuesday-Blitz-January-23-2024"]
[Site "Chess.com"]
[Date "2024.01.23"]
[Round "6"]
[White "Rud_Makarian"]
[Black "KNVB"]
[Result "0-1"]
[WhiteElo "2969"]
[BlackElo "2775"]
[TimeControl "180+1"]
[EndTime "15:05:00 PST"]
[Termination "KNVB won by resignation"]

1. c4 {[%clk 0:03:00.9]} 1... c5 {[%clk 0:02:57.7]} 2. Nc3 {[%clk 0:03:00.2]}
2... b6 {[%clk 0:02:58.1]} 3. Nf3 {[%clk 0:02:59]} 3... Bb7 {[%clk 0:02:58.7]}
4. d4 {[%clk 0:02:55.7]} 4... cxd4 {[%clk 0:02:58.6]} 5. Nxd4 {[%clk 0:02:56.6]}
5... e6 {[%clk 0:02:58.9]} 6. e4 {[%clk 0:02:56.5]} 6... a6 {[%clk 0:02:58.1]}
7. f3 {[%clk 0:02:56.8]} 7... Qc7 {[%clk 0:02:57.7]} 8. Be2 {[%clk 0:02:55.5]}
8... Nf6 {[%clk 0:02:57.9]} 9. Be3 {[%clk 0:02:54.6]} 9... d6 {[%clk 0:02:56]}
10. Qd2 {[%clk 0:02:51.4]} 10... Nbd7 {[%clk 0:02:35.8]} 11. O-O {[%clk
0:02:51]} 11... Be7 {[%clk 0:02:28.6]} 12. Rfd1 {[%clk 0:02:51.4]} 12... O-O
{[%clk 0:02:26.1]} 13. Rac1 {[%clk 0:02:52]} 13... Rac8 {[%clk 0:02:26.5]} 14.
a3 {[%clk 0:02:47.4]} 14... Qb8 {[%clk 0:02:22.1]} 15. b4 {[%clk 0:02:47.9]}
15... Rfe8 {[%clk 0:02:18.5]} 16. Kh1 {[%clk 0:02:37.2]} 16... h5 {[%clk
0:02:16.8]} 17. Nb3 {[%clk 0:02:33.5]} 17... h4 {[%clk 0:02:07.7]} 18. Na4
{[%clk 0:01:24.2]} 18... h3 {[%clk 0:00:56.4]} 19. gxh3 {[%clk 0:01:21.7]} 19...
b5 {[%clk 0:00:52]} 20. cxb5 {[%clk 0:01:21.3]} 20... Rxc1 {[%clk 0:00:44.7]}
21. Rxc1 {[%clk 0:01:20.1]} 21... axb5 {[%clk 0:00:45.6]} 22. Nc3 {[%clk
0:01:19.5]} 22... d5 {[%clk 0:00:45.5]} 23. exd5 {[%clk 0:01:14.2]} 23... Nxd5
{[%clk 0:00:45.7]} 24. Nxd5 {[%clk 0:01:12.6]} 24... Bxd5 {[%clk 0:00:46.6]} 25.
Nd4 {[%clk 0:01:11.9]} 25... Ne5 {[%clk 0:00:43.6]} 26. Bf4 {[%clk 0:01:02.1]}
26... Bf6 {[%clk 0:00:28.5]} 27. Qe3 {[%clk 0:00:55]} 27... Ng4 {[%clk
0:00:02.4]} 28. hxg4 {[%clk 0:00:41.8]} 28... e5 {[%clk 0:00:02.8]} 29. Nc6
{[%clk 0:00:07.8]} 29... exf4 {[%clk 0:00:02.6]} 30. Qd2 {[%clk 0:00:08.3]}
30... Bxc6 {[%clk 0:00:02.6]} 31. Rxc6 {[%clk 0:00:08.7]} 31... Qa8 {[%clk
0:00:02.8]} 32. Rc3 {[%clk 0:00:06.9]} 32... Bxc3 {[%clk 0:00:02.9]} 0-1

[Event "Late-Titled-Tuesday-Blitz-January-23-2024"]
[Site "Chess.com"]
[Date "2024.01.23"]
[Round "6"]
[White "Nf3c5"]
[Black "carloseduar100"]
[Result "1-0"]
[WhiteElo "2539"]
[BlackElo "2301"]
[TimeControl "180+1"]
[EndTime "15:05:00 PST"]
[Termination "Nf3c5 won by resignation"]

1. d4 {[%clk 0:02:53.3]} 1... d5 {[%clk 0:02:51.4]} 2. Nf3 {[%clk 0:02:51.2]}
2... c6 {[%clk 0:02:51.1]} 3. c4 {[%clk 0:02:51.4]} 3... Nf6 {[%clk 0:02:50.9]}
4. cxd5 {[%clk 0:02:49.5]} 4... cxd5 {[%clk 0:02:50.6]} 5. Nc3 {[%clk
0:02:49.7]} 5... e6 {[%clk 0:02:50.8]} 6. Bf4 {[%clk 0:02:40.4]} 6... Nc6 {[%clk
0:02:51.7]} 7. Rc1 {[%clk 0:02:39]} 7... Bd6 {[%clk 0:02:51.8]} 8. Bg5 {[%clk
0:02:37.9]} 8... h6 {[%clk 0:02:51.3]} 9. Bh4 {[%clk 0:02:37.5]} 9... Bd7 {[%clk
0:02:50.1]} 10. e3 {[%clk 0:02:35.4]} 10... a6 {[%clk 0:02:50.2]} 11. Bd3 {[%clk
0:02:31.8]} 11... Qe7 {[%clk 0:02:50.1]} 12. O-O {[%clk 0:02:09.6]} 12... Rc8
{[%clk 0:02:48.9]} 13. Na4 {[%clk 0:02:02.2]} 13... g5 {[%clk 0:02:37.4]} 14.
Bg3 {[%clk 0:02:00.9]} 14... Bxg3 {[%clk 0:02:38]} 15. fxg3 {[%clk 0:01:53.6]}
15... Nb4 {[%clk 0:02:36.2]} 16. Rxc8+ {[%clk 0:01:48.9]} 16... Bxc8 {[%clk
0:02:36.3]} 17. Bb1 {[%clk 0:01:45.7]} 17... b5 {[%clk 0:02:32.1]} 18. Nc5
{[%clk 0:01:44.7]} 18... Nc6 {[%clk 0:02:24.2]} 19. a4 {[%clk 0:01:36.9]} 19...
b4 {[%clk 0:02:21.5]} 20. Qe2 {[%clk 0:01:32.3]} 20... Ng4 {[%clk 0:01:16.9]}
21. Nd2 {[%clk 0:00:59]} 21... f5 {[%clk 0:01:12.7]} 22. h3 {[%clk 0:00:53.4]}
22... Nf6 {[%clk 0:01:12.6]} 23. g4 {[%clk 0:00:54.1]} 23... fxg4 {[%clk
0:00:52.5]} 24. Bg6+ {[%clk 0:00:51.7]} 24... Kd8 {[%clk 0:00:52.6]} 25. hxg4
{[%clk 0:00:47.9]} 25... Rf8 {[%clk 0:00:41.4]} 26. Nxa6 {[%clk 0:00:42]} 26...
Nd7 {[%clk 0:00:41.5]} 27. Nb3 {[%clk 0:00:32.1]} 27... Rxf1+ {[%clk 0:00:38.4]}
28. Qxf1 {[%clk 0:00:32.1]} 28... Qf8 {[%clk 0:00:37.3]} 29. Qe2 {[%clk
0:00:29.6]} 29... Qd6 {[%clk 0:00:19.5]} 30. Nac5 {[%clk 0:00:28.4]} 30... Nb6
{[%clk 0:00:18.3]} 31. Bd3 {[%clk 0:00:26.8]} 31... e5 {[%clk 0:00:15.4]} 32.
Bf5 {[%clk 0:00:23.9]} 32... e4 {[%clk 0:00:14.5]} 33. Qb5 {[%clk 0:00:22.3]}
33... Qc7 {[%clk 0:00:08.6]} 34. Bxc8 {[%clk 0:00:20.7]} 34... Kxc8 {[%clk
0:00:08.8]} 35. a5 {[%clk 0:00:18.9]} 35... Nd7 {[%clk 0:00:08.4]} 36. Qa6+
{[%clk 0:00:18.3]} 36... Kd8 {[%clk 0:00:07.7]} 37. Ne6+ {[%clk 0:00:18.5]}
37... Ke7 {[%clk 0:00:06.3]} 38. Nxc7 {[%clk 0:00:19.4]} 1-0

[Event "Late-Titled-Tuesday-Blitz-January-23-2024"]
[Site "Chess.com"]
[Date "2024.01.23"]
[Round "6"]
[White "IgorBjelobrk"]
[Black "SergioMoralesG"]
[Result "1-0"]
[WhiteElo "2624"]
[BlackElo "2462"]
[TimeControl "180+1"]
[EndTime "15:05:05 PST"]
[Termination "IgorBjelobrk won on time"]

1. d4 {[%clk 0:02:56.2]} 1... d5 {[%clk 0:02:59.5]} 2. c4 {[%clk 0:02:55.1]}
2... c6 {[%clk 0:03:00]} 3. Nf3 {[%clk 0:02:54.5]} 3... Nf6 {[%clk 0:03:00.4]}
4. Qc2 {[%clk 0:02:53.6]} 4... dxc4 {[%clk 0:02:56.8]} 5. e4 {[%clk 0:02:53.7]}
5... b5 {[%clk 0:02:53.7]} 6. b3 {[%clk 0:02:53.4]} 6... cxb3 {[%clk 0:02:52.6]}
7. axb3 {[%clk 0:02:54.3]} 7... Bb7 {[%clk 0:02:52]} 8. Nc3 {[%clk 0:02:49.5]}
8... e6 {[%clk 0:02:47.6]} 9. Bb2 {[%clk 0:02:44.7]} 9... Be7 {[%clk 0:02:46.8]}
10. Bd3 {[%clk 0:02:42]} 10... h6 {[%clk 0:02:43.6]} 11. O-O {[%clk 0:02:41.7]}
11... O-O {[%clk 0:02:43.2]} 12. Rfd1 {[%clk 0:02:40.5]} 12... a6 {[%clk
0:02:40.5]} 13. h3 {[%clk 0:02:35.4]} 13... Nbd7 {[%clk 0:02:40.2]} 14. e5
{[%clk 0:02:29.4]} 14... Nd5 {[%clk 0:02:36]} 15. Nxd5 {[%clk 0:02:29.5]} 15...
cxd5 {[%clk 0:02:33.5]} 16. Qd2 {[%clk 0:02:29.7]} 16... f5 {[%clk 0:02:24.9]}
17. exf6 {[%clk 0:02:26.4]} 17... Nxf6 {[%clk 0:02:24.9]} 18. Ne5 {[%clk
0:02:23.4]} 18... Ne4 {[%clk 0:02:18.8]} 19. Bxe4 {[%clk 0:02:22.4]} 19... dxe4
{[%clk 0:02:19.7]} 20. Qe3 {[%clk 0:02:14.7]} 20... Bg5 {[%clk 0:02:11.4]} 21.
Qg3 {[%clk 0:02:08]} 21... Qd5 {[%clk 0:01:59]} 22. Ng6 {[%clk 0:01:58.6]} 22...
e3 {[%clk 0:01:37.2]} 23. fxe3 {[%clk 0:01:50.5]} 23... Bxe3+ {[%clk 0:01:25.7]}
24. Kh1 {[%clk 0:01:50]} 24... Qxg2+ {[%clk 0:01:01.6]} 25. Qxg2 {[%clk
0:01:50.9]} 25... Bxg2+ {[%clk 0:01:01.7]} 26. Kxg2 {[%clk 0:01:51.8]} 26...
Rf2+ {[%clk 0:01:01.8]} 27. Kg3 {[%clk 0:01:52.7]} 27... Rxb2 {[%clk 0:01:00.2]}
28. Rd3 {[%clk 0:01:49.3]} 28... Bf2+ {[%clk 0:00:55.6]} 29. Kg4 {[%clk
0:01:47.5]} 29... Kh7 {[%clk 0:00:44.8]} 30. Ne5 {[%clk 0:01:45.9]} 30... Rf8
{[%clk 0:00:28.1]} 31. Rxa6 {[%clk 0:01:39.9]} 31... Rf5 {[%clk 0:00:16.3]} 32.
Rxe6 {[%clk 0:01:33.7]} 32... Rg5+ {[%clk 0:00:16.3]} 33. Kf3 {[%clk 0:01:33.2]}
33... Bh4 {[%clk 0:00:10.3]} 34. Ke4 {[%clk 0:01:30.8]} 34... Rg3 {[%clk
0:00:08.1]} 35. Rb6 {[%clk 0:00:32.6]} 35... Rxd3 {[%clk 0:00:03.9]} 36. Nxd3
{[%clk 0:00:33.5]} 36... Rxb3 {[%clk 0:00:04.2]} 37. d5 {[%clk 0:00:33.7]} 37...
Bf6 {[%clk 0:00:01.6]} 38. d6 {[%clk 0:00:33.1]} 38... b4 {[%clk 0:00:01.4]} 39.
d7 {[%clk 0:00:26.7]} 39... Rb1 {[%clk 0:00:01.4]} 40. Rxf6 {[%clk 0:00:24.9]}
1-0

[Event "Late-Titled-Tuesday-Blitz-January-23-2024"]
[Site "Chess.com"]
[Date "2024.01.23"]
[Round "6"]
[White "lucachess49"]
[Black "Lennis93"]
[Result "0-1"]
[WhiteElo "2517"]
[BlackElo "2715"]
[TimeControl "180+1"]
[EndTime "15:05:08 PST"]
[Termination "Lennis93 won by resignation"]

1. e4 {[%clk 0:03:00.9]} 1... c5 {[%clk 0:02:58.3]} 2. Nf3 {[%clk 0:03:00.1]}
2... Nc6 {[%clk 0:02:59]} 3. b3 {[%clk 0:02:59.9]} 3... Nf6 {[%clk 0:02:57.6]}
4. e5 {[%clk 0:02:50.5]} 4... Nd5 {[%clk 0:02:57.3]} 5. Bc4 {[%clk 0:02:48.8]}
5... Nb6 {[%clk 0:02:56.7]} 6. Na3 {[%clk 0:02:32]} 6... Nxc4 {[%clk 0:02:54.5]}
7. Nxc4 {[%clk 0:02:32.9]} 7... d5 {[%clk 0:02:54.6]} 8. exd6 {[%clk 0:02:32.2]}
8... exd6 {[%clk 0:02:54.8]} 9. O-O {[%clk 0:02:32.2]} 9... Be7 {[%clk
0:02:54.9]} 10. Bb2 {[%clk 0:02:32.3]} 10... O-O {[%clk 0:02:54.7]} 11. d4
{[%clk 0:02:29]} 11... Bf6 {[%clk 0:02:53.8]} 12. d5 {[%clk 0:02:24.4]} 12...
Bxb2 {[%clk 0:02:49.8]} 13. Nxb2 {[%clk 0:02:24.7]} 13... Ne7 {[%clk 0:02:49.8]}
14. h3 {[%clk 0:02:23.4]} 14... Bf5 {[%clk 0:02:47.2]} 15. Re1 {[%clk
0:02:21.9]} 15... Re8 {[%clk 0:02:45.9]} 16. Qd2 {[%clk 0:02:19.2]} 16... h6
{[%clk 0:02:40.1]} 17. Nc4 {[%clk 0:02:19.1]} 17... Qd7 {[%clk 0:02:09.5]} 18.
a4 {[%clk 0:01:58]} 18... b6 {[%clk 0:02:06.7]} 19. c3 {[%clk 0:01:56.6]} 19...
Rad8 {[%clk 0:01:58.8]} 20. Re2 {[%clk 0:01:45.5]} 20... Nc8 {[%clk 0:01:39.6]}
21. Rae1 {[%clk 0:01:44.1]} 21... Rxe2 {[%clk 0:01:38.7]} 22. Qxe2 {[%clk
0:01:40.7]} 22... g5 {[%clk 0:01:34.6]} 23. h4 {[%clk 0:01:16]} 23... g4 {[%clk
0:01:29.8]} 24. Nfd2 {[%clk 0:01:15.9]} 24... h5 {[%clk 0:01:26.7]} 25. Nf1
{[%clk 0:01:15.6]} 25... Bg6 {[%clk 0:01:25.3]} 26. Ng3 {[%clk 0:01:13.4]} 26...
b5 {[%clk 0:01:22.1]} 27. axb5 {[%clk 0:00:27.6]} 27... Qxb5 {[%clk 0:01:23]}
28. Qe3 {[%clk 0:00:24.4]} 28... Qxb3 {[%clk 0:01:22.4]} 29. Qg5 {[%clk
0:00:24.2]} 29... Rf8 {[%clk 0:01:11.3]} 30. Nxh5 {[%clk 0:00:19.8]} 30... Qxc4
{[%clk 0:01:01.3]} 31. Nf6+ {[%clk 0:00:17.8]} 31... Kg7 {[%clk 0:01:01.7]} 32.
h5 {[%clk 0:00:12.3]} 32... Qxc3 {[%clk 0:00:56.7]} 33. Rc1 {[%clk 0:00:12.8]}
33... Qe5 {[%clk 0:00:51.2]} 34. Qxe5 {[%clk 0:00:06.8]} 34... dxe5 {[%clk
0:00:52.1]} 35. Nd7 {[%clk 0:00:07.3]} 35... Rd8 {[%clk 0:00:48.5]} 36. Nxe5
{[%clk 0:00:06.2]} 36... Rxd5 {[%clk 0:00:45.8]} 37. h6+ {[%clk 0:00:01.6]}
37... Kxh6 {[%clk 0:00:43.3]} 38. Nxg4+ {[%clk 0:00:02.5]} 38... Kg7 {[%clk
0:00:42.8]} 39. Ne3 {[%clk 0:00:02.3]} 39... Re5 {[%clk 0:00:41.9]} 40. g3
{[%clk 0:00:02]} 40... Nd6 {[%clk 0:00:38.4]} 41. Ra1 {[%clk 0:00:02.9]} 41...
Re7 {[%clk 0:00:37.3]} 42. Ra6 {[%clk 0:00:02.9]} 42... Nb5 {[%clk 0:00:29.9]}
43. Nd5 {[%clk 0:00:02.9]} 43... Re1+ {[%clk 0:00:25.5]} 44. Kh2 {[%clk
0:00:03.2]} 44... Be4 {[%clk 0:00:25.2]} 0-1

[Event "Late-Titled-Tuesday-Blitz-January-23-2024"]
[Site "Chess.com"]
[Date "2024.01.23"]
[Round "6"]
[White "Grischuk"]
[Black "platy3"]
[Result "1-0"]
[WhiteElo "3069"]
[BlackElo "2864"]
[TimeControl "180+1"]
[EndTime "15:05:09 PST"]
[Termination "Grischuk won on time"]

1. d4 {[%clk 0:03:00.9]} 1... Nf6 {[%clk 0:03:00]} 2. c4 {[%clk 0:03:01.5]} 2...
e6 {[%clk 0:03:00.7]} 3. Bg5 {[%clk 0:03:01.2]} 3... h6 {[%clk 0:02:59.8]} 4.
Bh4 {[%clk 0:03:01.1]} 4... b6 {[%clk 0:02:49.3]} 5. Nc3 {[%clk 0:02:54.1]} 5...
Bb7 {[%clk 0:02:49.5]} 6. e3 {[%clk 0:02:52.3]} 6... g5 {[%clk 0:02:42]} 7. Bg3
{[%clk 0:02:51.8]} 7... Bg7 {[%clk 0:02:42.5]} 8. h4 {[%clk 0:02:40.8]} 8... d6
{[%clk 0:02:30.3]} 9. hxg5 {[%clk 0:02:37.4]} 9... hxg5 {[%clk 0:02:31.2]} 10.
Rxh8+ {[%clk 0:02:37.7]} 10... Bxh8 {[%clk 0:02:32.1]} 11. Qc2 {[%clk
0:02:38.1]} 11... Nbd7 {[%clk 0:02:27.3]} 12. O-O-O {[%clk 0:02:38]} 12... Qe7
{[%clk 0:02:26.5]} 13. Nb5 {[%clk 0:02:30.8]} 13... Qd8 {[%clk 0:01:57.4]} 14.
Bxd6 {[%clk 0:02:12.7]} 14... cxd6 {[%clk 0:01:55.9]} 15. Nxd6+ {[%clk
0:02:13.6]} 15... Kf8 {[%clk 0:01:55.8]} 16. Nxb7 {[%clk 0:02:14.3]} 16... Qc7
{[%clk 0:01:56]} 17. c5 {[%clk 0:02:15]} 17... Qxb7 {[%clk 0:01:15.3]} 18. c6
{[%clk 0:02:15.1]} 18... Qc7 {[%clk 0:01:16.1]} 19. cxd7 {[%clk 0:02:14.9]}
19... Qxd7 {[%clk 0:01:16.8]} 20. Kb1 {[%clk 0:02:11.6]} 20... Rc8 {[%clk
0:01:16]} 21. Qd3 {[%clk 0:02:03.9]} 21... Qc6 {[%clk 0:01:12.4]} 22. Ne2 {[%clk
0:01:56.4]} 22... Qd6 {[%clk 0:00:51.1]} 23. Nc3 {[%clk 0:01:25.7]} 23... Ng4
{[%clk 0:00:39.2]} 24. Qe2 {[%clk 0:01:14.5]} 24... f5 {[%clk 0:00:28]} 25. g3
{[%clk 0:01:14.1]} 25... Qb4 {[%clk 0:00:24.5]} 26. Rc1 {[%clk 0:00:59.3]} 26...
e5 {[%clk 0:00:08.7]} 27. Qf3 {[%clk 0:00:45.3]} 27... Nh6 {[%clk 0:00:08.9]}
28. Qb7 {[%clk 0:00:40.7]} 28... Re8 {[%clk 0:00:06.3]} 29. Nd5 {[%clk
0:00:36.9]} 29... Qd2 {[%clk 0:00:06.3]} 30. Bb5 {[%clk 0:00:11.6]} 30... exd4
{[%clk 0:00:06.6]} 31. Qc6 {[%clk 0:00:10.5]} 31... Rd8 {[%clk 0:00:01.7]} 32.
Qxh6+ {[%clk 0:00:09.8]} 32... Bg7 {[%clk 0:00:02.4]} 33. Qe6 {[%clk 0:00:09]}
33... d3 {[%clk 0:00:02.1]} 34. Qe7+ {[%clk 0:00:06.6]} 1-0